[Event "Kvibergspelen 2022"]
[Site "Kviberg Park Hotel & Conference, Krutvagen 2, Gothenburg, Sweden"]
[Date "2022.09.30"]
[Round "4.17"]
[White "Bohman Karlholm, Adrian"]
[Black "Frost, Niklas"]
[Result "1-0"]
[TimeControl "15 minutes + 5 seconds per move from move one (Round 1 - 4) / 90 minutes + 30 seconds per move from move one (Round 5 - 8)"]
[WhiteFideId "1720643"]
[BlackFideId "1717235"]
[WhiteElo "2117"]
[BlackElo "1843"]

1. d4 {[%clk 00:15:08]} {[%emt 00:00:01]} d5 {[%clk 00:15:00]} {[%emt
00:00:11]} 2. c4 {[%clk 00:15:10]} {[%emt 00:00:02]} e6 {[%clk 00:15:00]}
{[%emt 00:00:05]} 3. Nc3 {[%clk 00:15:13]} {[%emt 00:00:02]} Nf6 {[%clk
00:14:58]} {[%emt 00:00:08]} 4. cxd5 {[%clk 00:15:15]} {[%emt 00:00:03]} exd5
{[%clk 00:14:57]} {[%emt 00:00:06]} 5. Bg5 {[%clk 00:15:16]} {[%emt 00:00:02]}
c6 {[%clk 00:14:48]} {[%emt 00:00:15]} 6. Qc2 {[%clk 00:15:18]} {[%emt
00:00:03]} h6 {[%clk 00:14:32]} {[%emt 00:00:21]} 7. Bh4 {[%clk 00:15:08]}
{[%emt 00:00:15]} Be7 {[%clk 00:13:28]} {[%emt 00:01:09]} 8. e3 {[%clk
00:14:46]} {[%emt 00:00:26]} Ne4 {[%clk 00:12:54]} {[%emt 00:00:39]} 9. Bxe7
{[%clk 00:14:34]} {[%emt 00:00:17]} Qxe7 {[%clk 00:12:55]} {[%emt 00:00:05]} 10.
Nxd5 {[%clk 00:14:21]} {[%emt 00:00:17]} cxd5 {[%clk 00:10:53]} {[%emt
00:02:08]} 11. Qxc8+ {[%clk 00:14:22]} {[%emt 00:00:03]} Qd8 {[%clk 00:10:51]}
{[%emt 00:00:08]} 12. Bb5+ {[%clk 00:12:40]} {[%emt 00:01:47]} Nc6 {[%clk
00:10:45]} {[%emt 00:00:11]} 13. Bxc6+ {[%clk 00:11:39]} {[%emt 00:01:05]} bxc6
{[%clk 00:10:35]} {[%emt 00:00:16]} 14. Qxc6+ {[%clk 00:11:40]} {[%emt
00:00:04]} Kf8 {[%clk 00:10:27]} {[%emt 00:00:14]} 15. Ne2 {[%clk 00:11:15]}
{[%emt 00:00:29]} Qa5+ {[%clk 00:10:07]} {[%emt 00:00:26]} 16. Nc3 {[%clk
00:11:11]} {[%emt 00:00:09]} Ke7 {[%clk 00:09:08]} {[%emt 00:01:03]} 17. Qxd5
{[%clk 00:10:18]} {[%emt 00:00:57]} Qxd5 {[%clk 00:07:48]} {[%emt 00:01:26]} 18.
Nxd5+ {[%clk 00:10:20]} {[%emt 00:00:03]} Kd6 {[%clk 00:07:34]} {[%emt
00:00:19]} 19. Nc3 {[%clk 00:10:18]} {[%emt 00:00:08]} 1-0

[Event "Kvibergspelen 2022"]
[Site "Kviberg Park Hotel & Conference, Krutvagen 2, Gothenburg, Sweden"]
[Date "2022.09.30"]
[Round "4.18"]
[White "Borvander, Tom"]
[Black "Morell, Oscar"]
[Result "1-0"]
[TimeControl "15 minutes + 5 seconds per move from move one (Round 1 - 4) / 90 minutes + 30 seconds per move from move one (Round 5 - 8)"]
[WhiteFideId "1707388"]
[BlackFideId "1752952"]
[WhiteElo "2098"]
[BlackElo "1833"]

1. d4 {[%clk 00:15:09]} d5 {[%clk 00:15:09]} 2. c4 {[%clk 00:15:12]} {[%emt
00:00:02]} c6 {[%clk 00:15:13]} {[%emt 00:00:02]} 3. Nf3 {[%clk 00:15:16]}
{[%emt 00:00:02]} Nf6 {[%clk 00:15:07]} {[%emt 00:00:10]} 4. Qc2 {[%clk
00:15:19]} {[%emt 00:00:02]} Bg4 {[%clk 00:14:07]} {[%emt 00:01:05]} 5. Ne5
{[%clk 00:14:16]} {[%emt 00:01:08]} Bh5 {[%clk 00:13:53]} {[%emt 00:00:19]} 6.
e3 {[%clk 00:13:40]} {[%emt 00:00:41]} Nbd7 {[%clk 00:13:45]} {[%emt 00:00:12]}
7. Nxd7 {[%clk 00:13:19]} {[%emt 00:00:26]} Qxd7 {[%clk 00:13:42]} {[%emt
00:00:07]} 8. Bd3 {[%clk 00:13:20]} {[%emt 00:00:05]} e6 {[%clk 00:13:11]}
{[%emt 00:00:36]} 9. O-O {[%clk 00:13:07]} {[%emt 00:00:18]} Bd6 {[%clk
00:13:07]} {[%emt 00:00:09]} 10. h3 {[%clk 00:13:09]} {[%emt 00:00:03]} O-O
{[%clk 00:13:00]} {[%emt 00:00:12]} 11. b3 {[%clk 00:12:52]} {[%emt 00:00:22]}
Rac8 {[%clk 00:12:52]} {[%emt 00:00:13]} 12. Bb2 {[%clk 00:12:53]} {[%emt
00:00:04]} Bb8 {[%clk 00:11:55]} {[%emt 00:01:02]} 13. Nd2 {[%clk 00:12:47]}
{[%emt 00:00:11]} Qd6 {[%clk 00:09:13]} {[%emt 00:02:47]} 14. f4 {[%clk
00:12:49]} {[%emt 00:00:03]} Bg6 {[%clk 00:08:07]} {[%emt 00:01:11]} 15. a4
{[%clk 00:12:40]} {[%emt 00:00:15]} a5 {[%clk 00:05:50]} {[%emt 00:02:21]} 16.
Ba3 {[%clk 00:12:35]} {[%emt 00:00:10]} Qd7 {[%clk 00:04:56]} {[%emt 00:01:00]}
17. Bxf8 {[%clk 00:12:36]} {[%emt 00:00:05]} Rxf8 {[%clk 00:05:00]} 18. c5
{[%clk 00:12:31]} {[%emt 00:00:10]} Bc7 {[%clk 00:04:48]} {[%emt 00:00:16]} 19.
Rab1 {[%clk 00:12:15]} {[%emt 00:00:21]} Rb8 {[%clk 00:04:31]} {[%emt
00:00:22]} 20. Bxg6 {[%clk 00:11:31]} {[%emt 00:00:49]} hxg6 {[%clk 00:04:34]}
{[%emt 00:00:03]} 21. Qc3 {[%clk 00:11:30]} {[%emt 00:00:06]} b5 {[%clk
00:03:39]} {[%emt 00:00:59]} 22. cxb6 {[%emt 00:00:15]} Bxb6 {[%clk 00:03:39]}
{[%emt 00:00:04]} 23. Rfc1 {[%clk 00:11:11]} {[%emt 00:00:15]} Rc8 {[%clk
00:02:45]} {[%emt 00:00:59]} 24. b4 {[%clk 00:11:08]} {[%emt 00:00:09]} Qa7
{[%clk 00:02:23]} {[%emt 00:00:27]} 25. Rc2 {[%clk 00:09:33]} {[%emt 00:01:40]}
Nd7 {[%clk 00:00:47]} {[%emt 00:01:40]} 26. Nb3 {[%clk 00:09:22]} {[%emt
00:00:16]} axb4 {[%clk 00:00:23]} {[%emt 00:00:29]} 27. Qxb4 {[%clk 00:09:20]}
{[%emt 00:00:07]} c5 {[%clk 00:00:27]} {[%emt 00:00:02]} 28. dxc5 {[%clk
00:07:51]} {[%emt 00:01:33]} Rxc5 {[%clk 00:00:27]} {[%emt 00:00:05]} 29. Nxc5
{[%clk 00:07:42]} {[%emt 00:00:14]} Bxc5 {[%clk 00:00:30]} {[%emt 00:00:02]} 30.
Rxc5 {[%clk 00:07:09]} {[%emt 00:00:38]} 1-0

[Event "Kvibergspelen 2022"]
[Site "Kviberg Park Hotel & Conference, Krutvagen 2, Gothenburg, Sweden"]
[Date "2022.09.30"]
[Round "4.19"]
[White "Olsson, Thomas"]
[Black "Briem, Stephan"]
[Result "0-1"]
[TimeControl "15 minutes + 5 seconds per move from move one (Round 1 - 4) / 90 minutes + 30 seconds per move from move one (Round 5 - 8)"]
[WhiteFideId "1702696"]
[BlackFideId "2312506"]
[WhiteElo "1908"]
[BlackElo "2083"]

1. e4 {[%clk 00:15:08]} {[%emt 00:00:01]} d5 {[%clk 00:15:08]} {[%emt
00:00:02]} 2. exd5 {[%clk 00:14:53]} {[%emt 00:00:20]} Qxd5 {[%clk 00:15:10]}
{[%emt 00:00:03]} 3. Nc3 {[%clk 00:14:56]} {[%emt 00:00:02]} Qd6 {[%clk
00:15:14]} 4. d4 {[%clk 00:14:50]} {[%emt 00:00:12]} Nf6 {[%clk 00:15:16]}
{[%emt 00:00:03]} 5. Bc4 {[%clk 00:14:13]} {[%emt 00:00:42]} a6 {[%clk
00:15:14]} {[%emt 00:00:08]} 6. Bb3 {[%clk 00:14:09]} {[%emt 00:00:08]} b5
{[%clk 00:15:09]} {[%emt 00:00:10]} 7. Nf3 {[%clk 00:13:39]} {[%emt 00:00:35]}
Bb7 {[%clk 00:15:04]} {[%emt 00:00:10]} 8. a3 {[%emt 00:00:54]} e6 {[%clk
00:15:00]} {[%emt 00:00:07]} 9. h3 {[%clk 00:11:39]} c5 {[%clk 00:14:51]}
{[%emt 00:01:32]} 10. Be3 {[%clk 00:11:00]} c4 {[%clk 00:13:47]} {[%emt
00:01:53]} 11. Ba2 {[%clk 00:11:03]} Nbd7 {[%clk 00:13:39]} {[%emt 00:00:14]}
12. Qe2 {[%emt 00:00:43]} Be7 {[%clk 00:13:19]} 13. Rd1 {[%clk 00:10:23]}
{[%emt 00:00:32]} O-O {[%clk 00:13:03]} {[%emt 00:00:21]} 14. Bg5 {[%clk
00:10:10]} {[%emt 00:00:18]} h6 {[%clk 00:09:49]} {[%emt 00:03:19]} 15. Bh4
{[%clk 00:10:05]} {[%emt 00:00:10]} Rfe8 {[%clk 00:08:39]} {[%emt 00:01:15]} 16.
Bb1 {[%clk 00:09:24]} {[%emt 00:00:47]} Rad8 {[%clk 00:08:13]} {[%emt
00:00:30]} 17. Rd2 {[%clk 00:08:17]} {[%emt 00:01:12]} Qb6 {[%clk 00:07:14]}
{[%emt 00:01:04]} 18. Rd1 {[%clk 00:07:20]} {[%emt 00:01:02]} Nf8 {[%clk
00:06:49]} {[%emt 00:00:30]} 19. Bg3 {[%clk 00:06:01]} {[%emt 00:01:24]} Bxf3
{[%clk 00:06:31]} {[%emt 00:00:23]} 20. Qxf3 {[%clk 00:06:00]} {[%emt
00:00:06]} Rxd4 {[%clk 00:06:28]} {[%emt 00:00:09]} 21. Rxd4 {[%clk 00:05:56]}
{[%emt 00:00:09]} Qxd4 {[%clk 00:06:26]} {[%emt 00:00:07]} 22. O-O {[%clk
00:05:58]} {[%emt 00:00:03]} Rd8 {[%clk 00:05:47]} {[%emt 00:00:45]} 23. Rd1
{[%clk 00:05:52]} {[%emt 00:00:11]} Qb6 {[%clk 00:05:47]} {[%emt 00:00:04]} 24.
Rxd8 {[%clk 00:05:33]} {[%emt 00:00:25]} Bxd8 {[%clk 00:04:52]} {[%emt
00:01:00]} 25. Qa8 {[%emt 00:00:54]} Be7 {[%clk 00:04:29]} 26. Qc8 {[%clk
00:04:31]} {[%emt 00:00:45]} a5 {[%clk 00:03:57]} {[%emt 00:00:37]} 27. Bc7
{[%clk 00:02:40]} {[%emt 00:01:57]} Qc6 {[%clk 00:03:31]} {[%emt 00:00:31]} 28.
Qb8 {[%clk 00:02:17]} {[%emt 00:00:27]} b4 {[%clk 00:03:18]} {[%emt 00:00:19]}
29. axb4 {[%clk 00:02:09]} {[%emt 00:00:14]} axb4 {[%clk 00:03:20]} {[%emt
00:00:03]} 30. Nb5 {[%clk 00:01:57]} {[%emt 00:00:17]} N6d7 {[%clk 00:03:10]}
{[%emt 00:00:15]} 31. Qe8 {[%clk 00:01:00]} {[%emt 00:01:01]} Bc5 {[%clk
00:02:32]} {[%emt 00:00:43]} 0-1

[Event "Kvibergspelen 2022"]
[Site "Kviberg Park Hotel & Conference, Krutvagen 2, Gothenburg, Sweden"]
[Date "2022.10.01"]
[Round "5.1"]
[White "Hillarp, Tiger"]
[Black "Hector, Jonny"]
[Result "1-0"]
[TimeControl "15 minutes + 5 seconds per move from move one (Round 1 - 4) / 90 minutes + 30 seconds per move from move one (Round 5 - 8)"]
[WhiteTitle "GM"]
[BlackTitle "GM"]
[WhiteFideId "1700812"]
[BlackFideId "1700090"]
[WhiteElo "2511"]
[BlackElo "2454"]

1. Nf3 {[%clk 01:30:57]} {[%emt 00:00:03]} d5 {[%clk 01:30:44]} {[%emt
00:00:16]} 2. c4 {[%clk 01:31:21]} {[%emt 00:00:07]} d4 {[%clk 01:30:29]}
{[%emt 00:00:44]} 3. b4 {[%clk 01:31:45]} {[%emt 00:00:07]} g5 {[%clk
01:28:34]} {[%emt 00:02:24]} 4. Qa4+ {[%clk 01:31:57]} {[%emt 00:00:19]} Bd7
{[%clk 01:23:57]} {[%emt 00:05:05]} 5. Qb3 {[%clk 01:30:21]} {[%emt 00:02:08]}
Bg7 {[%clk 01:24:03]} {[%emt 00:00:23]} 6. Nxg5 {[%clk 01:21:13]} {[%emt
00:09:38]} e5 {[%clk 01:23:31]} {[%emt 00:01:02]} 7. Ne4 {[%clk 01:21:14]}
{[%emt 00:00:30]} f5 {[%clk 01:16:13]} {[%emt 00:07:47]} 8. Nc5 {[%clk
01:20:40]} {[%emt 00:01:05]} b6 {[%clk 01:06:18]} {[%emt 00:10:25]} 9. Nxd7
{[%clk 01:19:52]} {[%emt 00:01:18]} Nxd7 {[%clk 01:06:02]} {[%emt 00:00:45]} 10.
g3 {[%clk 01:07:37]} {[%emt 00:12:46]} Ngf6 {[%clk 00:58:56]} {[%emt 00:07:35]}
11. Bh3 {[%clk 01:04:11]} {[%emt 00:03:57]} c5 {[%clk 00:52:18]} {[%emt
00:07:07]} 12. Bxf5 {[%clk 01:03:37]} {[%emt 00:01:05]} O-O {[%clk 00:50:09]}
{[%emt 00:02:38]} 13. d3 {[%clk 00:36:46]} {[%emt 00:27:21]} cxb4 {[%clk
00:49:11]} {[%emt 00:01:28]} 14. Qxb4 {[%clk 00:36:27]} {[%emt 00:00:49]} Nc5
{[%clk 00:49:17]} {[%emt 00:00:24]} 15. Nd2 {[%clk 00:36:05]} {[%emt 00:00:52]}
Qe8 {[%clk 00:38:08]} {[%emt 00:11:39]} 16. f3 {[%clk 00:33:20]} {[%emt
00:03:16]} Qh5 {[%clk 00:34:05]} {[%emt 00:04:32]} 17. Be4 {[%clk 00:30:06]}
{[%emt 00:03:45]} Nfxe4 {[%clk 00:32:50]} {[%emt 00:01:44]} 18. Nxe4 {[%clk
00:30:00]} {[%emt 00:00:36]} Qxf3 {[%clk 00:28:33]} {[%emt 00:04:47]} 19. exf3
{[%clk 00:24:06]} {[%emt 00:06:24]} Nxd3+ {[%clk 00:28:59]} {[%emt 00:00:04]}
20. Ke2 {[%clk 00:24:25]} {[%emt 00:00:11]} Nxb4 {[%clk 00:29:24]} {[%emt
00:00:05]} 21. Ba3 {[%clk 00:24:40]} {[%emt 00:00:16]} a5 {[%clk 00:29:11]}
{[%emt 00:00:42]} 22. Rhb1 {[%clk 00:19:31]} {[%emt 00:05:40]} d3+ {[%clk
00:18:51]} {[%emt 00:10:50]} 23. Kf2 {[%clk 00:19:52]} {[%emt 00:00:08]} Nc2
{[%clk 00:18:14]} {[%emt 00:01:07]} 24. Bxf8 {[%clk 00:20:15]} {[%emt
00:00:07]} Rxf8 {[%clk 00:17:31]} {[%emt 00:01:13]} 25. Rd1 {[%clk 00:20:17]}
{[%emt 00:00:29]} Nxa1 {[%clk 00:15:46]} {[%emt 00:02:17]} 26. Rxa1 {[%clk
00:20:41]} {[%emt 00:00:04]} Rc8 {[%clk 00:15:34]} {[%emt 00:00:41]} 27. Rc1
{[%clk 00:19:10]} {[%emt 00:02:01]} Bh6 {[%clk 00:15:35]} {[%emt 00:00:29]} 28.
Rc3 {[%clk 00:19:21]} {[%emt 00:00:19]} Rd8 {[%clk 00:14:03]} {[%emt 00:02:01]}
29. Ke1 {[%clk 00:19:17]} {[%emt 00:00:35]} Kf7 {[%clk 00:10:03]} {[%emt
00:04:30]} 30. Nf2 {[%clk 00:15:16]} {[%emt 00:04:31]} d2+ {[%clk 00:09:32]}
{[%emt 00:01:01]} 31. Kd1 {[%clk 00:15:40]} {[%emt 00:00:06]} Rd4 {[%clk
00:08:59]} {[%emt 00:01:03]} 32. Ne4 {[%clk 00:13:37]} {[%emt 00:02:33]} Ke7
{[%clk 00:08:12]} {[%emt 00:01:16]} 33. a3 {[%clk 00:11:01]} {[%emt 00:03:08]}
Kd7 {[%clk 00:05:38]} {[%emt 00:03:03]} 34. c5 {[%clk 00:07:10]} {[%emt
00:04:22]} b5 {[%clk 00:05:47]} {[%emt 00:00:20]} 35. c6+ {[%clk 00:07:11]}
{[%emt 00:00:30]} Kc7 {[%clk 00:05:37]} {[%emt 00:00:40]} 36. Rc5 {[%clk
00:06:51]} {[%emt 00:00:50]} b4 {[%clk 00:03:16]} {[%emt 00:02:51]} 37. Rxe5
{[%clk 00:04:22]} {[%emt 00:02:59]} bxa3 {[%clk 00:03:13]} {[%emt 00:00:32]} 38.
Rxa5 {[%clk 00:04:19]} {[%emt 00:00:33]} Bf8 {[%clk 00:02:54]} {[%emt
00:00:49]} 39. Ra6 {[%clk 00:00:47]} {[%emt 00:04:03]} Bb4 {[%clk 00:03:02]}
{[%emt 00:00:20]} 40. Nf6 {[%clk 00:01:06]} {[%emt 00:00:10]} Kc8 {[%clk
00:00:38]} {[%emt 00:02:55]} 41. Ne8 {[%clk 00:00:55]} {[%emt 00:00:41]} Kb8
{[%clk 00:00:39]} {[%emt 00:00:29]} 42. c7+ {[%clk 00:01:16]} {[%emt 00:00:09]}
Kb7 {[%clk 00:01:06]} {[%emt 00:00:03]} 43. Ra7+ {[%clk 00:00:51]} {[%emt
00:00:56]} Kxa7 {[%clk 00:01:29]} {[%emt 00:00:07]} 44. c8=Q {[%clk 00:01:13]}
{[%emt 00:00:09]} a2 {[%clk 00:01:26]} {[%emt 00:00:32]} 45. Qc7+ {[%clk
00:01:29]} {[%emt 00:00:14]} Ka6 {[%clk 00:00:51]} {[%emt 00:01:05]} 46. Qc6+
{[%clk 00:01:45]} {[%emt 00:00:14]} Ka5 {[%clk 00:00:58]} {[%emt 00:00:22]} 47.
Qa8+ {[%clk 00:02:06]} {[%emt 00:00:09]} Kb5 {[%clk 00:00:49]} {[%emt
00:00:39]} 48. Nc7+ {[%clk 00:00:59]} {[%emt 00:01:38]} Kb6 {[%clk 00:00:42]}
{[%emt 00:00:36]} 49. Qa6+ {[%clk 00:01:23]} {[%emt 00:00:07]} Kxc7 {[%clk
00:00:40]} {[%emt 00:00:32]} 50. Qa7+ {[%clk 00:01:47]} {[%emt 00:00:05]} Kc6
{[%clk 00:00:56]} {[%emt 00:00:14]} 51. Qxd4 {[%clk 00:02:11]} {[%emt
00:00:06]} 1-0

[Event "Kvibergspelen 2022"]
[Site "Kviberg Park Hotel & Conference, Krutvagen 2, Gothenburg, Sweden"]
[Date "2022.10.01"]
[Round "5.2"]
[White "Stefansson, Vignir Vatnar"]
[Black "Abdrlauf, Elham"]
[Result "1/2-1/2"]
[TimeControl "15 minutes + 5 seconds per move from move one (Round 1 - 4) / 90 minutes + 30 seconds per move from move one (Round 5 - 8)"]
[WhiteTitle "IM"]
[BlackTitle "IM"]
[WhiteFideId "2308649"]
[BlackFideId "1533533"]
[WhiteElo "2452"]
[BlackElo "2487"]

1. Nf3 {[%clk 01:29:14]} {[%emt 00:01:46]} Nf6 {[%clk 01:26:39]} {[%emt
00:04:21]} 2. c4 {[%clk 01:29:22]} {[%emt 00:00:21]} e6 {[%clk 01:26:49]}
{[%emt 00:00:20]} 3. g3 {[%clk 01:29:34]} {[%emt 00:00:18]} d5 {[%clk
01:25:57]} {[%emt 00:01:22]} 4. Bg2 {[%clk 01:29:56]} {[%emt 00:00:08]} Be7
{[%clk 01:24:01]} {[%emt 00:02:26]} 5. d4 {[%clk 01:29:10]} {[%emt 00:01:16]}
O-O {[%clk 01:23:27]} {[%emt 00:01:04]} 6. Nc3 {[%clk 01:29:02]} {[%emt
00:00:37]} c6 {[%clk 01:19:49]} {[%emt 00:04:09]} 7. O-O {[%clk 01:29:01]}
{[%emt 00:00:31]} b6 {[%clk 01:18:02]} {[%emt 00:02:17]} 8. Nd2 {[%clk
01:19:30]} {[%emt 00:10:01]} a5 {[%clk 01:12:55]} {[%emt 00:05:37]} 9. b3
{[%clk 01:11:38]} {[%emt 00:08:22]} Bb7 {[%clk 00:59:41]} {[%emt 00:13:44]} 10.
Bb2 {[%clk 01:06:25]} {[%emt 00:05:44]} Na6 {[%clk 00:51:18]} {[%emt 00:08:53]}
11. Re1 {[%clk 01:01:56]} {[%emt 00:04:59]} Qb8 {[%clk 00:44:08]} {[%emt
00:07:40]} 12. e4 {[%clk 01:00:41]} {[%emt 00:01:45]} Rd8 {[%clk 00:44:23]}
{[%emt 00:00:15]} 13. Qf3 {[%clk 00:52:51]} {[%emt 00:08:20]} Rd7 {[%clk
00:31:33]} {[%emt 00:13:20]} 14. Rac1 {[%clk 00:51:18]} {[%emt 00:02:02]} dxe4
{[%clk 00:29:08]} {[%emt 00:02:55]} 15. Ndxe4 {[%clk 00:50:27]} {[%emt
00:01:22]} Qd8 {[%clk 00:26:24]} {[%emt 00:03:14]} 16. Qe2 {[%clk 00:47:25]}
{[%emt 00:03:32]} Nxe4 {[%clk 00:20:34]} {[%emt 00:06:19]} 17. Nxe4 {[%clk
00:47:04]} {[%emt 00:00:50]} Qf8 {[%clk 00:20:50]} {[%emt 00:00:15]} 18. Nc3
{[%clk 00:39:35]} {[%emt 00:07:59]} Bf6 {[%clk 00:17:36]} {[%emt 00:03:45]} 19.
Na4 {[%clk 00:38:14]} {[%emt 00:01:50]} Bxd4 {[%clk 00:16:54]} {[%emt
00:01:12]} 20. Bxd4 {[%clk 00:30:46]} {[%emt 00:07:58]} Rxd4 {[%clk 00:17:23]}
{[%emt 00:00:02]} 21. Nxb6 {[%clk 00:30:34]} {[%emt 00:00:43]} Rad8 {[%clk
00:17:51]} 22. Na4 {[%clk 00:30:49]} {[%emt 00:00:15]} Nb4 {[%clk 00:16:00]}
{[%emt 00:02:21]} 23. Rcd1 {[%clk 00:30:46]} {[%emt 00:00:34]} Nd3 {[%clk
00:13:54]} {[%emt 00:02:35]} 24. Rf1 {[%clk 00:30:45]} {[%emt 00:00:32]} Qd6
{[%clk 00:13:15]} {[%emt 00:01:09]} 25. Qe3 {[%clk 00:30:24]} {[%emt 00:00:50]}
e5 {[%clk 00:12:45]} {[%emt 00:01:00]} 26. Be4 {[%clk 00:23:49]} {[%emt
00:07:07]} Nxf2 {[%clk 00:08:50]} {[%emt 00:04:23]} 27. Rxd4 {[%clk 00:21:41]}
{[%emt 00:02:38]} Nh3+ {[%clk 00:09:13]} {[%emt 00:00:07]} 28. Kg2 {[%clk
00:22:00]} {[%emt 00:00:10]} exd4 {[%clk 00:09:39]} {[%emt 00:00:04]} 29. Qd2
{[%clk 00:21:30]} {[%emt 00:01:00]} Bc8 {[%clk 00:06:53]} {[%emt 00:03:16]} 30.
Bf5 {[%clk 00:17:56]} {[%emt 00:04:04]} Bxf5 {[%clk 00:07:21]} {[%emt
00:00:03]} 31. Rxf5 {[%clk 00:18:20]} {[%emt 00:00:05]} Qe6 {[%clk 00:07:46]}
{[%emt 00:00:06]} 32. Rf1 {[%clk 00:08:12]} {[%emt 00:10:38]} Re8 {[%clk
00:05:09]} {[%emt 00:03:06]} 33. Nc5 {[%clk 00:06:03]} {[%emt 00:02:39]} Qe7
{[%clk 00:01:30]} {[%emt 00:04:10]} 34. Nd3 {[%clk 00:05:57]} {[%emt 00:00:35]}
Ng5 {[%clk 00:01:09]} {[%emt 00:00:52]} 35. Re1 {[%clk 00:06:01]} {[%emt
00:00:26]} Ne6 {[%clk 00:01:38]} 36. Qxa5 {[%clk 00:06:06]} {[%emt 00:00:26]}
h6 {[%clk 00:01:59]} {[%emt 00:00:10]} 37. Qd2 {[%clk 00:04:58]} {[%emt
00:01:36]} c5 {[%clk 00:01:47]} {[%emt 00:00:42]} 38. Qf2 {[%clk 00:05:24]}
{[%emt 00:00:04]} Qd7 {[%clk 00:01:15]} {[%emt 00:01:01]} 39. h4 {[%clk
00:03:48]} {[%emt 00:02:06]} Re7 {[%clk 00:01:20]} {[%emt 00:00:26]} 40. Re5
{[%clk 00:03:47]} {[%emt 00:00:31]} Qa7 {[%clk 00:00:53]} {[%emt 00:00:56]} 41.
Kh2 {[%clk 00:03:50]} {[%emt 00:00:27]} Nf8 {[%clk 00:00:46]} {[%emt 00:00:38]}
42. Rxe7 {[%clk 00:02:28]} {[%emt 00:01:52]} Qxe7 {[%clk 00:01:15]} 43. a3
{[%clk 00:02:41]} {[%emt 00:00:17]} Ng6 {[%clk 00:00:53]} {[%emt 00:00:52]} 44.
Qf3 {[%clk 00:01:16]} {[%emt 00:01:54]} Ne5 {[%clk 00:00:32]} {[%emt 00:00:52]}
45. Qa8+ {[%clk 00:01:29]} {[%emt 00:00:17]} Kh7 {[%clk 00:00:58]} {[%emt
00:00:03]} 46. Qe4+ {[%clk 00:01:55]} {[%emt 00:00:05]} Ng6 {[%clk 00:01:22]}
{[%emt 00:00:06]} 47. Qxe7 {[%clk 00:02:18]} {[%emt 00:00:06]} Nxe7 {[%clk
00:01:51]} {[%emt 00:00:02]} 48. Nxc5 {[%clk 00:02:43]} {[%emt 00:00:05]} Nc6
{[%clk 00:01:55]} {[%emt 00:00:26]} 49. Kg2 {[%clk 00:02:24]} {[%emt 00:00:48]}
Kg6 {[%clk 00:02:15]} {[%emt 00:00:11]} 50. Kf3 {[%clk 00:01:46]} {[%emt
00:01:09]} f5 {[%clk 00:02:44]} 51. Kf4 {[%clk 00:01:08]} {[%emt 00:01:07]} Kf6
{[%clk 00:03:13]} 52. h5 {[%clk 00:01:31]} {[%emt 00:00:07]} Ne5 {[%clk
00:03:32]} {[%emt 00:00:11]} 53. a4 {[%emt 00:00:34]} g5+ {[%clk 00:04:02]} 54.
hxg6 {[%clk 00:01:51]} {[%emt 00:00:06]} Nxg6+ {[%clk 00:04:30]} {[%emt
00:00:01]} 55. Kf3 {[%clk 00:02:16]} {[%emt 00:00:05]} Ne5+ {[%clk 00:04:48]}
{[%emt 00:00:13]} 56. Ke2 {[%clk 00:02:41]} {[%emt 00:00:04]} Nc6 {[%clk
00:05:06]} {[%emt 00:00:13]} 57. Nb7 {[%clk 00:01:02]} {[%emt 00:02:09]} h5
{[%clk 00:03:03]} {[%emt 00:02:33]} 58. a5 {[%clk 00:01:10]} {[%emt 00:00:22]}
f4 {[%clk 00:03:15]} {[%emt 00:00:18]} 59. gxf4 {[%clk 00:01:13]} {[%emt
00:00:26]} h4 {[%clk 00:03:07]} {[%emt 00:00:38]} 60. Kf3 {[%clk 00:00:48]}
{[%emt 00:00:56]} d3 {[%clk 00:01:02]} {[%emt 00:02:34]} 61. Nc5 {[%clk
00:00:45]} {[%emt 00:00:34]} Nxa5 {[%clk 00:01:02]} {[%emt 00:00:30]} 62. Nxd3
{[%clk 00:00:58]} {[%emt 00:00:16]} Kf5 {[%clk 00:01:05]} {[%emt 00:00:27]} 63.
Nc5 {[%clk 00:00:42]} {[%emt 00:00:46]} h3 {[%clk 00:01:14]} {[%emt 00:00:21]}
64. Ne4 {[%clk 00:00:39]} {[%emt 00:00:34]} Nxb3 {[%clk 00:01:36]} {[%emt
00:00:08]} 65. Ng3+ {[%clk 00:01:06]} {[%emt 00:00:02]} Ke6 {[%clk 00:01:22]}
{[%emt 00:00:43]} 66. Kg4 {[%clk 00:01:12]} {[%emt 00:00:26]} h2 {[%clk
00:01:51]} {[%emt 00:00:01]} 67. f5+ {[%clk 00:00:45]} {[%emt 00:00:57]} Kf7
{[%clk 00:01:48]} {[%emt 00:00:29]} 68. Kh3 {[%clk 00:00:45]} {[%emt 00:00:34]}
Nd2 {[%clk 00:02:00]} {[%emt 00:00:12]} 69. Kxh2 {[%clk 00:00:40]} {[%emt
00:00:41]} 1/2-1/2